lending/lending_fUSD_20250315
["ID","MTS","AMOUNT","RATE_DAILY","PERIOD"]
[356175823,1742019045528,-151.0,0.00020674,2]
[356175824,1742019045537,-210.709966,0.00020674,2]
[356175825,1742019045547,-210.709958,0.00020674,2]
[356175826,1742019045557,-151.0,0.00020674,2]
[356175827,1742019045566,-151.0,0.00020674,2]
[356175828,1742019045575,-48852.87422993,0.00020694,2]
[356175829,1742019045585,-3238.39921,0.0002073,25]
[356175830,1742019045594,-168.04,0.00020785,2]
[356175831,1742019045604,-151.0,0.00020788,2]
[356175832,1742019045613,-151.0,0.00020788,2]
[356175833,1742019045623,-152.30847,0.00020788,2]
[356175834,1742019045632,-152.31872,0.00020788,2]
[356175835,1742019045641,-382.55675565,0.0002079,2]
[356175836,1742019045651,-960.14,0.00020847,2]
[356175837,1742019045661,-150.0,0.0002085,2]
[356175838,1742019045671,-4489.53,0.00020951,2]
[356175839,1742019045680,-716.53,0.00020951,2]
[356175840,1742019045690,-31688.0,0.00020959,2]
[356175841,1742019045700,-151.0,0.00020959,2]
[356175842,1742019045710,-151.0,0.00020959,2]
[356175843,1742019045719,-50000.0,0.00021,2]
[356175844,1742019045729,-203.0,0.00021,2]
[356175845,1742019045738,-203.0,0.00021,2]
[356175846,1742019045748,-203.0,0.00021,2]
[356175847,1742019045757,-203.0,0.00021,2]
[356175848,1742019045767,-203.0,0.00021,2]
[356175849,1742019045776,-203.0,0.00021,2]
[356175850,1742019045785,-203.0,0.00021,2]
[356175851,1742019045795,-203.0,0.00021,2]
[356175852,1742019045805,-203.0,0.00021,2]
[356175853,1742019045814,-203.0,0.00021,2]
[356175854,1742019045824,-203.0,0.00021,2]
[356175855,1742019045833,-206.0,0.00021,2]
[356175856,1742019045843,-206.0,0.00021,2]
[356175857,1742019045853,-206.0,0.00021,2]
[356175858,1742019045862,-550.0,0.00021,2]
[356175859,1742019045871,-221.0,0.00021,2]
[356175860,1742019045881,-151.0,0.00021,2]
[356175861,1742019045890,-154.463344,0.00021,2]
[356175862,1742019045900,-151.0,0.00021,2]
[356175863,1742019045910,-158.088504,0.00021,2]
[356175864,1742019045920,-158.088504,0.00021,2]
[356175865,1742019045929,-151.0,0.00021,2]
[356175866,1742019045939,-300.0,0.00021,120]
[356175867,1742019045948,-165.382399,0.00021,2]
[356175868,1742019045958,-165.382398,0.00021,2]
[356175869,1742019045967,-151.0,0.00021,2]
[356175870,1742019045976,-960.14,0.00021121,2]
[356175871,1742019045986,-1419.36,0.000212,30]
[356175872,1742019045996,-150.0,0.00021319,2]
[356175873,1742019046005,-6061.01,0.0002137,2]
[356175874,1742019046015,-960.14,0.00021395,2]
[356175875,1742019046024,-166.08,0.00021471,2]
[356175876,1742019046034,-4512.45879341,0.0002152,2]
[356175877,1742019046043,-168.04,0.0002157,2]
[356175878,1742019046053,-674.4955425,0.00021653,2]
[356175879,1742019046062,-834.8714735,0.00021653,2]
[356175880,1742019046072,-1322.3397599,0.00021653,2]
[356175881,1742019046081,-10670.1475068,0.00021653,2]
[356175882,1742019046090,-960.14,0.00021669,2]
[356175883,1742019046099,-7265.37257322,0.000217,2]
[356175884,1742019046109,-19025.86,0.000217,2]
[356175885,1742019046119,-48852.87422993,0.00021788,2]
[356175886,1742019046129,-150.0,0.00021788,2]
[356175887,1742019046139,-5434.0,0.000218,2]
[356175888,1742019046148,-1000.0,0.000218,7]
[356175889,1742019046158,-151.0,0.000218,2]
[356175890,1742019046168,-151.0,0.000218,2]
[356175891,1742019046181,-151.0,0.00021865,2]
[356175892,1742019046190,-151.0,0.00021903,2]
[356175893,1742019046200,-4218.2806565,0.00021903,2]
[356175894,1742019046210,-4163.6879943,0.00021903,2]
[356175895,1742019046220,-206.4,0.00021917,2]
[356175896,1742019046229,-151.0,0.00021917,2]
[356175897,1742019046238,-199.667534,0.00021917,2]
[356175898,1742019046247,-1009.0,0.00021918,2]
[356175899,1742019046258,-2000.0,0.00021918,13]
[356175900,1742019046269,-2000.0,0.00021918,13]
[356175901,1742019046278,-2000.0,0.00021918,13]
[356175902,1742019046287,-2000.0,0.00021918,13]
[356175903,1742019046296,-2000.0,0.00021918,13]
[356175904,1742019046306,-2000.0,0.00021918,13]
[356175905,1742019046315,-1000.0,0.00021918,2]
[356175906,1742019046324,-1000.0,0.00021918,2]
[356175907,1742019046334,-1000.0,0.00021918,2]
[356175908,1742019046344,-1000.0,0.00021918,2]
[356175909,1742019046354,-1000.0,0.00021918,2]
[356175910,1742019046363,-1000.0,0.00021918,2]
[356175911,1742019046372,-1000.0,0.00021918,2]
[356175912,1742019046382,-1000.0,0.00021918,2]
[356175913,1742019046392,-1000.0,0.00021918,2]
[356175914,1742019046401,-1000.0,0.00021918,2]
[356175915,1742019046410,-1000.0,0.00021918,2]
[356175916,1742019046420,-1000.0,0.00021918,2]
[356175917,1742019046429,-1000.0,0.00021918,2]
[356175918,1742019046438,-1000.0,0.00021918,2]
[356175919,1742019046447,-1000.0,0.00021918,2]
[356175920,1742019046457,-1000.0,0.00021918,2]
[356175921,1742019046466,-1000.0,0.00021918,2]
[356175922,1742019046475,-1000.0,0.00021918,2]
[356175923,1742019046484,-1000.0,0.00021918,2]
[356175924,1742019046494,-1000.0,0.00021918,2]
[356175925,1742019046503,-1000.0,0.00021918,2]
[356175926,1742019046512,-1000.0,0.00021918,2]
[356175927,1742019046522,-1000.0,0.00021918,2]
[356175928,1742019046531,-1000.0,0.00021918,2]
[356175929,1742019046541,-1000.0,0.00021918,2]
[356175930,1742019046550,-1000.0,0.00021918,2]
[356175931,1742019046559,-1000.0,0.00021918,2]
[356175932,1742019046569,-1000.0,0.00021918,2]
[356175933,1742019046578,-1009.0,0.00021918,2]
[356175934,1742019046588,-516.0,0.00021918,13]
[356175935,1742019046598,-1000.0,0.00021918,2]
[356175936,1742019046607,-1000.0,0.00021918,2]
[356175937,1742019046616,-1000.0,0.00021918,2]
[356175938,1742019046626,-1000.0,0.00021918,2]
[356175939,1742019046635,-1000.0,0.00021918,2]
[356175940,1742019046644,-1000.0,0.00021918,2]
[356175941,1742019046653,-1000.0,0.00021918,2]
[356175942,1742019046663,-1000.0,0.00021918,2]
[356175943,1742019046672,-1000.0,0.00021918,2]
[356175944,1742019046681,-1000.0,0.00021918,2]
[356175945,1742019046690,-1000.0,0.00021918,2]
[356175946,1742019046700,-1000.0,0.00021918,2]
[356175947,1742019046710,-1000.0,0.00021918,2]
[356175948,1742019046719,-1000.0,0.00021918,2]
[356175949,1742019046728,-1000.0,0.00021918,2]
[356175950,1742019046737,-1000.0,0.00021918,2]
[356175951,1742019046746,-1000.0,0.00021918,2]
[356175952,1742019046756,-498.0,0.00021918,2]
[356175953,1742019046765,-1000.0,0.00021918,2]
[356175954,1742019046774,-1000.0,0.00021918,2]
[356175955,1742019046783,-1078.0,0.00021918,2]
[356175956,1742019046792,-2000.0,0.00021918,13]
[356175957,1742019046802,-2000.0,0.00021918,13]
[356175958,1742019046811,-2000.0,0.00021918,13]
[356175959,1742019046820,-2000.0,0.00021918,13]
[356175960,1742019046830,-2000.0,0.00021918,13]
[356175961,1742019046839,-2000.0,0.00021918,13]
[356175962,1742019046848,-2000.0,0.00021918,13]
[356175963,1742019046858,-2000.0,0.00021918,13]
[356175964,1742019046867,-2000.0,0.00021918,13]
[356175965,1742019046876,-2000.0,0.00021918,13]
[356175966,1742019046886,-2000.0,0.00021918,13]
[356175967,1742019046895,-2000.0,0.00021918,13]
[356175968,1742019046905,-2000.0,0.00021918,13]
[356175969,1742019046915,-2000.0,0.00021918,13]
[356175970,1742019046926,-2000.0,0.00021918,13]
[356175971,1742019046936,-2000.0,0.00021918,13]
[356175972,1742019046945,-2000.0,0.00021918,13]
[356175973,1742019046953,-2000.0,0.00021918,13]
[356175974,1742019046963,-2000.0,0.00021918,13]
[356175975,1742019046973,-2000.0,0.00021918,13]
[356175976,1742019046985,-2000.0,0.00021918,13]
[356175977,1742019046994,-2000.0,0.00021918,13]
[356175978,1742019047004,-2000.0,0.00021918,13]
[356175979,1742019047013,-2000.0,0.00021918,13]
[356175980,1742019047023,-2000.0,0.00021918,13]
[356175981,1742019047032,-2000.0,0.00021918,13]
[356175982,1742019047041,-2000.0,0.00021918,13]
[356175983,1742019047050,-2000.0,0.00021918,13]
[356175984,1742019047059,-2000.0,0.00021918,13]
[356175985,1742019047069,-2000.0,0.00021918,13]
[356175986,1742019047078,-2000.0,0.00021918,13]
[356175987,1742019047087,-2000.0,0.00021918,13]
[356175988,1742019047096,-2000.0,0.00021918,13]
[356175989,1742019047105,-2000.0,0.00021918,13]
[356175990,1742019047115,-2000.0,0.00021918,13]
[356175991,1742019047124,-2000.0,0.00021918,13]
[356175992,1742019047134,-1000.0,0.00021918,2]
[356175993,1742019047144,-1000.0,0.00021918,2]
[356175994,1742019047154,-1000.0,0.00021918,2]
[356175995,1742019047163,-2000.0,0.00021918,13]
[356175996,1742019047173,-2000.0,0.00021918,13]
[356175997,1742019047187,-2000.0,0.00021918,13]
[356175998,1742019047196,-2000.0,0.00021918,13]
[356175999,1742019047205,-151.0,0.00021918,7]
[356176000,1742019047215,-290.079092,0.00021918,7]
[356176001,1742019047224,-158.088504,0.00021918,7]
[356176002,1742019047234,-158.088503,0.00021918,7]
[356176003,1742019047243,-151.0,0.00021918,7]
[356176004,1742019047256,-293.554056,0.00021921,7]
[356176005,1742019047267,-1000.0,0.00021941,2]
[356176006,1742019047276,-960.14,0.00021943,2]
[356176007,1742019047286,-3238.39922,0.0002198,28]
[356176008,1742019047295,-246.11974855,0.00022,2]
[356176009,1742019047304,-500.0,0.00022,2]
[356176010,1742019047314,-160.14972609,0.00022,3]
[356176011,1742019047326,-66710.45519289,0.00022,2]
[356176012,1742019047335,-8915.46084973,0.00022,5]
[356176013,1742019047344,-500.0,0.00022,120]
[356176014,1742019047353,-330.0,0.00022,2]
[356176015,1742019047362,-1125.25,0.00022023,2]
[356176016,1742019047371,-230.64873824,0.0002211,2]
[356176017,1742019047381,-296.61,0.0002212,30]
[356176018,1742019047391,-500.0,0.00022191,3]
[356176019,1742019047400,-330.0,0.00022192,2]
[356176020,1742019047408,-960.14,0.00022217,2]
[356176021,1742019047418,-500.0,0.00022219,3]
[356176022,1742019047427,-1011.95785978,0.00022223,2]
[356176023,1742019047436,-835.51,0.00022231,2]
[356176024,1742019047445,-500.0,0.00022246,3]
[356176025,1742019047455,-150.0,0.00022257,2]
[356176026,1742019047465,-500.0,0.00022273,3]
[356176027,1742019047474,-183.91209101,0.00022301,3]
[356176028,1742019047484,-3934.0,0.00022387,2]
[356176029,1742019047494,-284.607,0.00022387,2]
[356176030,1742019047503,-151.0,0.00022387,2]
[356176031,1742019047514,-174.47,0.0002244,2]
[356176032,1742019047523,-7255.6429421,0.0002247,2]
[356176033,1742019047533,-674.4955425,0.00022485,2]
[356176034,1742019047542,-834.8714735,0.00022485,2]
[356176035,1742019047552,-1322.3397599,0.00022485,2]
[356176036,1742019047562,-960.14,0.00022491,2]
[356176037,1742019047572,-34026.26660698,0.000225,2]
[356176038,1742019047581,-2900.0,0.000225,15]
[356176039,1742019047591,-2034.0,0.00022577,2]
[356176040,1742019047600,-1279.0,0.00022577,2]
[356176041,1742019047609,-1419.0,0.00022577,2]
[356176042,1742019047618,-641.0,0.00022577,2]
[356176043,1742019047628,-501.96303637,0.0002271,2]
[356176044,1742019047637,-150.0,0.00022727,2]
[356176045,1742019047648,-960.14,0.00022765,2]
[356176046,1742019047658,-300.0,0.00022808,2]
[356176047,1742019047667,-500.0,0.0002282,2]
[356176048,1742019047677,-500.0,0.0002282,2]
[356176049,1742019047686,-500.0,0.0002282,2]
[356176050,1742019047695,-500.0,0.0002282,2]
[356176051,1742019047704,-500.0,0.0002282,2]
[356176052,1742019047713,-500.0,0.0002282,2]
[356176053,1742019047723,-500.0,0.0002282,2]
[356176054,1742019047732,-502.17438932,0.0002282,2]
[356176055,1742019047741,-500.0,0.0002282,2]
[356176056,1742019047750,-500.0,0.0002282,2]
[356176057,1742019047760,-500.0,0.0002282,2]
[356176058,1742019047769,-506.90331508,0.0002282,2]
[356176059,1742019047779,-502.86226525,0.0002282,2]
[356176060,1742019047788,-500.0,0.0002282,2]
[356176061,1742019047798,-500.0,0.0002282,2]
[356176062,1742019047807,-500.0,0.0002282,2]
[356176063,1742019047817,-500.0,0.0002282,2]
[356176064,1742019047828,-500.0,0.0002282,2]
[356176065,1742019047837,-500.0,0.0002282,2]
[356176066,1742019047847,-500.0,0.0002282,2]
[356176067,1742019047856,-500.0,0.0002282,2]
[356176068,1742019047865,-500.0,0.0002282,2]
[356176069,1742019047875,-500.0,0.0002282,2]
[356176070,1742019047885,-500.0,0.0002282,2]
[356176071,1742019047895,-577.32147307,0.0002282,2]
[356176072,1742019047905,-500.0,0.0002282,2]
[356176073,1742019047914,-500.0,0.0002282,2]
[356176074,1742019047924,-500.0,0.0002282,2]
[356176075,1742019047933,-500.0,0.0002282,2]
[356176076,1742019047943,-501.79596966,0.0002282,2]
[356176077,1742019047954,-611.60626793,0.0002282,2]
[356176078,1742019047964,-500.0,0.0002282,2]
[356176079,1742019047973,-500.0,0.0002282,2]
[356176080,1742019047983,-500.0,0.0002282,2]
[356176081,1742019047993,-506.22262057,0.0002282,2]
[356176082,1742019048003,-241.82004269,0.00022834,2]
[356176083,1742019048013,-48852.87422993,0.00022882,2]
[356176084,1742019048023,-600.0,0.00023,2]
[356176085,1742019048033,-152.0,0.00023,2]
[356176086,1742019048044,-400.65116806,0.0002301,2]
[356176087,1742019048054,-500.0,0.00023011,30]
[356176088,1742019048064,-342.25311896,0.00023011,30]
[356176089,1742019048074,-500.0,0.00023011,30]
[356176090,1742019048084,-500.0,0.00023011,30]
[356176091,1742019048093,-500.0,0.00023011,30]
[356176092,1742019048102,-500.0,0.00023011,30]
[356176093,1742019048112,-500.0,0.00023011,30]
[356176094,1742019048122,-500.0,0.00023011,30]
[356176095,1742019048132,-500.0,0.00023011,30]
[356176096,1742019048142,-503.03054523,0.00023011,30]
[356176097,1742019048152,-500.0,0.00023011,30]
[356176098,1742019048161,-500.0,0.00023011,30]
[356176099,1742019048174,-500.0,0.00023011,30]
[356176100,1742019048185,-500.0,0.00023011,30]
[356176101,1742019048195,-500.0,0.00023011,30]
[356176102,1742019048204,-981.94274228,0.00023011,30]
[356176103,1742019048215,-500.0,0.00023011,30]
[356176104,1742019048226,-500.0,0.00023011,30]
[356176105,1742019048236,-500.0,0.00023011,30]
[356176106,1742019048246,-500.0,0.00023011,30]
[356176107,1742019048258,-500.0,0.00023011,30]
[356176108,1742019048268,-500.0,0.00023011,30]
[356176109,1742019048279,-500.0,0.00023011,30]
[356176110,1742019048290,-500.0,0.00023011,30]
[356176111,1742019048300,-500.0,0.00023011,30]
[356176112,1742019048310,-500.0,0.00023011,30]
[356176113,1742019048319,-500.0,0.00023011,30]
[356176114,1742019048329,-500.0,0.00023011,30]
[356176115,1742019048339,-500.0,0.00023011,30]
[356176116,1742019048350,-500.0,0.00023011,30]
[356176117,1742019048361,-500.0,0.00023011,30]
[356176118,1742019048371,-500.0,0.00023011,30]
[356176119,1742019048381,-500.0,0.00023011,30]
[356176120,1742019048392,-500.0,0.00023011,30]
[356176121,1742019048402,-503.67353548,0.00023011,30]
[356176122,1742019048412,-500.0,0.00023011,30]
[356176123,1742019048424,-854.90453527,0.00023011,30]
[356176124,1742019048435,-503.30102428,0.00023011,30]
[356176125,1742019048445,-500.0,0.00023011,30]
[356176126,1742019048454,-500.0,0.00023011,30]
[356176127,1742019048464,-500.0,0.00023011,30]
[356176128,1742019048474,-500.0,0.00023011,30]
[356176129,1742019048484,-500.0,0.00023011,30]
[356176130,1742019048495,-500.0,0.00023011,30]
[356176131,1742019048505,-500.0,0.00023011,30]
[356176132,1742019048515,-330.0,0.00023014,2]
[356176133,1742019048524,-960.14,0.00023039,2]
[356176134,1742019048535,-549.97761242,0.00023084,2]
[356176135,1742019048545,-350.0,0.000231,2]
[356176136,1742019048555,-2867.931977,0.00023184,2]
[356176137,1742019048565,-2830.8154231,0.00023184,2]
[356176138,1742019048575,-150.0,0.00023196,2]
[356176139,1742019048586,-50026.00140737,0.000232,2]
[356176140,1742019048596,-569.53857771,0.0002322,2]
[356176141,1742019048606,-3238.39921,0.0002323,30]
[356176142,1742019048616,-960.14,0.00023313,2]
[356176143,1742019048626,-200.0,0.000235,2]
[356176144,1742019048636,-960.14,0.00023587,2]
[356176145,1742019048647,-150.0,0.00023665,2]
[356176146,1742019048656,-834.8714735,0.00023684,2]
[356176147,1742019048667,-1322.3397599,0.00023684,2]
[356176148,1742019048678,-19025.86,0.000237,2]
[356176149,1742019048688,-201.23529336,0.00023719,2]
[356176150,1742019048698,-3841.1383774,0.00023819,2]
[356176151,1742019048708,-1267.87,0.00023836,2]
[356176152,1742019048719,-960.14,0.00023861,2]
[356176153,1742019048729,-674.4955425,0.00023882,2]
[356176154,1742019048739,-13567.00130816,0.00023899,2]
[356176155,1742019048749,-9137.34577802,0.000239,2]
[356176156,1742019048759,-48852.87422993,0.00023976,2]
[356176157,1742019048769,-9786.12009507,0.00024,14]
[356176158,1742019048780,-59212.27773084,0.00024,2]
[356176159,1742019048791,-978.40052399,0.00024,2]
[356176160,1742019048801,-80698.6162872,0.00024,2]
[356176161,1742019048811,-974.487379,0.00024,25]
[356176162,1742019048821,-500.0,0.00024,120]
[356176163,1742019048832,-780.89577091,0.0002402,2]
[356176164,1742019048842,-150.0,0.00024134,2]
[356176165,1742019048852,-960.14,0.00024135,2]
[356176166,1742019048862,-1000.0,0.00024136,2]
[356176167,1742019048872,-152.0,0.00024164,2]
[356176168,1742019048882,-330.0,0.00024164,2]
[356176169,1742019048893,-404.25213992,0.0002421,2]
[356176170,1742019048905,-3542.22513672,0.0002421,2]
[356176171,1742019048915,-1125.25,0.00024225,2]
[356176172,1742019048926,-405.49,0.00024285,2]
[356176173,1742019048936,-960.14,0.00024409,2]
[356176174,1742019048947,-3238.39922,0.0002448,33]
[356176175,1742019048957,-835.51,0.00024495,2]
[356176176,1742019048968,-150.0,0.00024603,2]
[356176177,1742019048978,-848.00905638,0.0002464,2]
[356176178,1742019048988,-1000.0,0.00024658,2]
[356176179,1742019048998,-960.14,0.00024683,2]
[356176180,1742019049008,-695.96795916,0.00024683,2]
[356176181,1742019049018,-1011.95785978,0.00024736,2]
[356176182,1742019049029,-150.70438969,0.00024773,2]
[356176183,1742019049040,-1517.5832976,0.00024783,2]
[356176184,1742019049050,-167.2346181,0.00024783,2]
[356176185,1742019049060,-1497.9428518,0.00024783,2]
[356176186,1742019049071,-165.0702806,0.00024783,2]
[356176187,1742019049081,-674.4955425,0.00024783,2]
[356176188,1742019049091,-834.8714735,0.00024783,2]
[356176189,1742019049101,-1322.3397599,0.00024783,2]
[356176190,1742019049109,-426.6338126,0.00024783,2]
[356176191,1742019049116,-345112.393825,0.000248,3]
[356176192,1742019049125,-960.14,0.00024957,2]
[356176193,1742019049135,-150.0,0.00025,2]
[356176194,1742019049144,-198.88569015,0.00025,2]
[356176195,1742019049154,-1595.1898443,0.00025,2]
[356176196,1742019049164,-255.02468098,0.00025,2]
[356176197,1742019049174,-200.0,0.00025,2]
[356176198,1742019049188,-2916.04534803,0.00025,2]
[356176199,1742019049199,-1020.38459333,0.00025,2]
[356176200,1742019049208,-160.33344773,0.00025,2]
[356176201,1742019049223,-2002.0,0.00025,15]
[356176202,1742019049236,-900.0,0.00025,26]
[356176203,1742019049250,-151.0060647,0.00025,2]
[356176204,1742019049262,-150.0,0.00025,2]
[356176205,1742019049273,-150.0,0.00025,2]
[356176206,1742019049284,-150.0,0.00025,2]
[356176207,1742019049294,-150.0,0.00025,2]
[356176208,1742019049305,-150.0,0.00025,2]
[356176209,1742019049315,-150.0,0.00025,2]
[356176210,1742019049326,-150.0,0.00025,2]
[356176211,1742019049336,-172.596,0.00025,2]
[356176212,1742019049346,-122495.0,0.00025,2]
[356176213,1742019049358,-314.75664438,0.00025,60]
[356176214,1742019049368,-650.0,0.00025,2]
[356176215,1742019049378,-11252.3479572,0.0002501,2]
[356176216,1742019049388,-28986.26788961,0.00025014,2]
[356176217,1742019049398,-48852.87422993,0.00025069,2]
[356176218,1742019049409,-150.0,0.00025073,2]
[356176219,1742019049419,-350.0,0.000251,2]
[356176220,1742019049429,-3238.42157458,0.000251,2]
[356176221,1742019049440,-960.14,0.00025231,2]
[356176222,1742019049451,-206.0,0.000253,10]
[356176223,1742019049462,-280.0,0.000253,10]
[356176224,1742019049472,-1008.07607815,0.0002533,2]
[356176225,1742019049482,-1000.0,0.00025352,2]
[356176226,1742019049492,-272.57328373,0.00025352,2]
[356176227,1742019049503,-2542.0,0.0002536,10]
[356176228,1742019049513,-156.0,0.00025373,2]
[356176229,1742019049523,-808.868,0.00025387,2]
[356176230,1742019049534,-151.0,0.00025387,2]
[356176231,1742019049543,-1000.0,0.00025452,2]
[356176232,1742019049554,-1000.0,0.00025452,2]
[356176233,1742019049565,-1000.0,0.00025452,2]
[356176234,1742019049575,-1000.0,0.00025452,2]
[356176235,1742019049585,-960.14,0.00025505,2]
[356176236,1742019049595,-150.0,0.00025542,2]
[356176237,1742019049605,-2034.0,0.00025577,2]
[356176238,1742019049615,-305.646,0.00025577,2]
[356176239,1742019049625,-1419.0,0.00025577,2]
[356176240,1742019049635,-641.0,0.00025577,2]
[356176241,1742019049646,-3886.44699904,0.00025614,30]
[356176242,1742019049656,-487.18686021,0.00025614,30]
[356176243,1742019049666,-2000.0,0.00025681,120]
[356176244,1742019049676,-514.086371,0.00025681,120]
[356176245,1742019049686,-152.93109122,0.00025699,30]
[356176246,1742019049696,-3238.39921,0.0002573,36]
[356176247,1742019049707,-166.08,0.00025766,2]
[356176248,1742019049717,-330.0,0.00025775,2]
[356176249,1742019049727,-960.14,0.00025779,2]
[356176250,1742019049737,-5141.49178527,0.0002598,10]
[356176251,1742019049747,-574.63104731,0.0002599,2]
[356176252,1742019049756,-900.0,0.00026,27]
[356176253,1742019049766,-2999.99,0.00026,2]
[356176254,1742019049775,-3000.0,0.00026,2]
[356176255,1742019049785,-3000.0,0.00026,2]
[356176256,1742019049794,-3000.0,0.00026,2]
[356176257,1742019049803,-3000.0,0.00026,2]
[356176258,1742019049813,-1423.61,0.00026,2]
[356176259,1742019049822,-4328.53907312,0.00026,2]
[356176260,1742019049832,-4433.65,0.00026,2]
[356176261,1742019049842,-500.0,0.00026,120]
[356176262,1742019049852,-150.0,0.00026011,2]
[356176263,1742019049862,-960.14,0.00026053,2]
[356176264,1742019049872,-1800.03,0.00026137,120]
[356176265,1742019049882,-48852.87422993,0.00026163,2]
[356176266,1742019049891,-241.82004269,0.00026179,2]
[356176267,1742019049901,-960.14,0.00026327,2]
[356176268,1742019049911,-1000.0,0.0002633,2]
[356176269,1742019049921,-26288.74278647,0.000264,2]
[356176270,1742019049931,-1125.25,0.00026428,120]
[356176271,1742019049941,-6527.87020063,0.00026468,3]
[356176272,1742019049951,-8500.0,0.00026477,3]
[356176273,1742019049960,-8500.0,0.00026477,3]
[356176274,1742019049970,-8500.0,0.00026477,3]
[356176275,1742019049980,-8500.0,0.00026477,3]
[356176276,1742019049990,-150.0,0.0002648,2]
[356176277,1742019050001,-151.0315114,0.00026498,120]
[356176278,1742019050011,-296.61,0.00026599,30]
[356176279,1742019050023,-960.24444474,0.00026601,2]
[356176280,1742019050033,-32384.57,0.00026605,3]
[356176281,1742019050043,-835.51,0.00026759,2]
[356176282,1742019050054,-173.0315114,0.00026798,120]
[356176283,1742019050064,-151.0315114,0.00026798,120]
[356176284,1742019050074,-510.60265512,0.00026839,21]
[356176285,1742019050084,-510.60265512,0.00026839,21]
[356176286,1742019050093,-510.60265512,0.00026839,21]
[356176287,1742019050103,-510.60265512,0.00026839,21]
[356176288,1742019050113,-510.60265512,0.00026839,21]
[356176289,1742019050123,-510.60265512,0.00026839,21]
[356176290,1742019050133,-510.60265512,0.00026839,21]
[356176291,1742019050143,-510.60265512,0.00026839,21]
[356176292,1742019050153,-510.60265512,0.00026839,21]
[356176293,1742019050163,-510.60265512,0.00026839,21]
[356176294,1742019050175,-896.33,0.00026849,2]
[356176295,1742019050187,-334.76,0.00026849,2]
[356176296,1742019050197,-251.61,0.00026849,2]
[356176297,1742019050208,-1861.75735974,0.00027,14]
[356176298,1742019050478,-900.0,0.00027,28]
[356176299,1742019050503,-500.0,0.00027,28]
[356176300,1742019050513,-250.0,0.00027,2]
[356176301,1742019050522,-991.06058126,0.00027,2]
[356176302,1742019050532,-700.0,0.00027,2]
[356176303,1742019050542,-2000.0,0.00027,2]
[356176304,1742019050551,-2138.492537,0.0002701,2]
[356176305,1742019050560,-3516.4,0.00027123,2]
[356176306,1742019050570,-173.0315114,0.00027198,120]
[356176307,1742019050579,-151.0315114,0.00027198,120]
[356176308,1742019050588,-1011.95785978,0.0002725,2]
[356176309,1742019050598,-48852.87422993,0.00027257,2]
[356176310,1742019050608,-600.0,0.00027272,5]
[356176311,1742019050617,-2000.0,0.000273,2]
[356176312,1742019050627,-330.0,0.00027386,2]
[356176313,1742019050636,-500.0,0.00027397,2]
[356176314,1742019050646,-2000.0,0.00027397,7]
[356176315,1742019050655,-2000.0,0.00027397,7]
[356176316,1742019050665,-2000.0,0.00027397,7]
[356176317,1742019050674,-2000.0,0.00027397,7]
[356176318,1742019050684,-2000.0,0.00027397,7]
[356176319,1742019050694,-2000.0,0.00027397,7]
[356176320,1742019050704,-2000.0,0.00027397,7]
[356176321,1742019050713,-2000.0,0.00027397,7]
[356176322,1742019050723,-2000.0,0.00027397,7]